fUST/lending_fUST_20240818
["ID","MTS","AMOUNT","RATE_DAILY","PERIOD"]
[335201741,1723975843650,-500.0,0.00016438,2]
[335201742,1723975843659,-500.0,0.00016438,2]
[335201743,1723975843669,-577.19,0.00016438,2]
[335201744,1723975843680,-1047.52,0.00016438,2]
[335201745,1723975843690,-500.0,0.00016438,2]
[335201746,1723975843699,-500.0,0.00016438,2]
[335201747,1723975843711,-500.0,0.00016438,2]
[335201749,1723975843724,-501.22456477,0.00016438,2]
[335201750,1723975843733,-500.0,0.00016438,2]
[335201751,1723975843745,-500.0,0.00016438,2]
[335201752,1723975843758,-935.42,0.00016438,2]
[335201753,1723975843769,-550.3,0.00016438,2]
[335201754,1723975843779,-500.0,0.00016438,2]
[335201755,1723975843788,-471.66054734,0.00016438,2]
[335201756,1723975843798,-500.0,0.00016438,2]
[335201757,1723975843808,-500.0,0.00016438,2]
[335201758,1723975843817,-503.37,0.00016438,2]
[335201759,1723975843827,-500.0,0.00016438,2]
[335201760,1723975843836,-646.91,0.00016438,2]
[335201761,1723975843846,-500.0,0.00016438,2]
[335201762,1723975843855,-580.66,0.00016438,2]
[335201763,1723975843865,-500.0,0.00016438,2]
[335201764,1723975843875,-503.82090815,0.00016438,2]
[335201765,1723975843884,-958.9,0.00016438,2]
[335201766,1723975843895,-500.0,0.00016438,2]
[335201767,1723975843904,-500.0,0.00016438,2]
[335201768,1723975843914,-500.0,0.00016438,2]
[335201769,1723975843924,-500.0,0.00016438,2]
[335201770,1723975843934,-500.0,0.00016438,2]
[335201771,1723975843944,-500.0,0.00016438,2]
[335201772,1723975843954,-500.0,0.00016438,2]
[335201773,1723975843964,-500.0,0.00016438,2]
[335201774,1723975843975,-2045.51,0.00016438,2]
[335201775,1723975843985,-500.0,0.00016438,2]
[335201776,1723975843994,-500.0,0.00016438,2]
[335201777,1723975844004,-500.0,0.00016438,2]
[335201778,1723975844019,-500.0,0.00016438,2]
[335201779,1723975844128,-500.0,0.00016438,2]
[335201780,1723975844139,-517.67,0.00016438,2]
[335201781,1723975844150,-500.0,0.00016438,2]
[335201782,1723975844160,-500.0,0.00016438,2]
[335201783,1723975844170,-500.0,0.00016438,2]
[335201784,1723975844180,-500.0,0.00016438,2]
[335201785,1723975844189,-500.0,0.00016438,2]
[335201786,1723975844200,-500.0,0.00016438,2]
[335201787,1723975844209,-671.98,0.00016438,2]
[335201788,1723975844219,-641.97,0.00016438,2]
[335201789,1723975844229,-2599.49,0.00016438,2]
[335201790,1723975844239,-501.47494704,0.00016438,2]
[335201791,1723975844249,-500.0,0.00016438,2]
[335201792,1723975844259,-500.0,0.00016438,2]
[335201793,1723975844269,-500.0,0.00016438,2]
[335201794,1723975844278,-500.0,0.00016438,2]
[335201795,1723975844288,-6716.99,0.00016438,2]
[335201796,1723975844299,-500.0,0.00016438,2]
[335201797,1723975844308,-820.82,0.00016438,2]
[335201798,1723975844318,-500.0,0.00016438,2]
[335201799,1723975844328,-500.0,0.00016438,2]
[335201800,1723975844338,-721.61,0.00016438,2]
[335201801,1723975844347,-500.0,0.00016438,2]
[335201802,1723975844357,-500.0,0.00016438,2]
[335201803,1723975844366,-820.5,0.00016438,2]
[335201804,1723975844376,-398.32735633,0.00016438,2]
[335201805,1723975844386,-506.2734219,0.00016438,2]
[335201806,1723975844396,-500.0,0.00016438,2]
[335201807,1723975844406,-500.0,0.00016438,2]
[335201808,1723975844416,-504.98050766,0.00016438,2]
[335201809,1723975844426,-729.38,0.00016438,2]
[335201810,1723975844436,-636.58,0.00016438,2]
[335201811,1723975844446,-674.4,0.00016438,2]
[335201812,1723975844456,-500.0,0.00016438,2]
[335201813,1723975844466,-170.170398,0.00016438,2]
[335201814,1723975844478,-170.170398,0.00016438,2]
[335201815,1723975844488,-500.0,0.00016438,2]
[335201816,1723975844498,-524.49331253,0.00016438,2]
[335201817,1723975844509,-500.0,0.00016438,2]
[335201818,1723975844520,-520.733221,0.00016438,2]
[335201819,1723975844531,-170.170398,0.00016438,2]
[335201820,1723975844541,-1149.89,0.00016438,2]
[335201821,1723975844551,-170.170398,0.00016438,2]
[335201822,1723975844561,-500.0,0.00016438,2]
[335201823,1723975844571,-202.48729624,0.00016438,2]
[335201824,1723975844580,-500.0,0.00016438,2]
[335201825,1723975844590,-500.0,0.00016438,2]
[335201826,1723975844599,-500.0,0.00016438,2]
[335201827,1723975844609,-500.0,0.00016438,2]
[335201828,1723975844619,-500.0,0.00016438,2]
[335201829,1723975844628,-891.32,0.00016438,2]
[335201830,1723975844637,-500.0,0.00016438,2]
[335201831,1723975844647,-812.98,0.00016438,2]
[335201832,1723975844656,-527.1813794,0.00016438,2]
[335201833,1723975844666,-500.0,0.00016438,2]
[335201834,1723975844675,-890.82,0.00016438,2]
[335201835,1723975844685,-500.0,0.00016438,2]
[335201836,1723975844694,-1069.24,0.00016438,2]
[335201837,1723975844703,-500.0,0.00016438,2]
[335201838,1723975844713,-500.0,0.00016438,2]
[335201839,1723975844723,-701.49,0.00016438,2]
[335201840,1723975844732,-505.01363414,0.00016438,2]
[335201841,1723975844742,-752.09,0.00016438,2]
[335201842,1723975844751,-807.24,0.00016438,2]
[335201843,1723975844760,-500.0,0.00016438,2]
[335201844,1723975844770,-500.0,0.00016438,2]
[335201845,1723975844779,-500.0,0.00016438,2]
[335201846,1723975844788,-500.0,0.00016438,2]
[335201847,1723975844798,-500.0,0.00016438,2]
[335201848,1723975844807,-500.0,0.00016438,2]
[335201849,1723975844817,-500.0,0.00016438,2]
[335201850,1723975844827,-500.0,0.00016438,2]
[335201851,1723975844837,-500.0,0.00016438,2]
[335201852,1723975844847,-716.82,0.00016438,2]
[335201853,1723975844856,-398.80764802,0.00016438,2]
[335201854,1723975844866,-500.0,0.00016438,2]
[335201855,1723975844876,-551.57,0.00016438,2]
[335201856,1723975844885,-500.0,0.00016438,2]
[335201857,1723975844894,-185.56289874,0.00016438,2]
[335201858,1723975844903,-708.62,0.00016438,2]
[335201859,1723975844913,-500.0,0.00016438,2]
[335201860,1723975844922,-500.0,0.00016438,2]
[335201861,1723975844931,-6022.38,0.00016438,2]
[335201862,1723975844941,-6022.38,0.00016438,2]
[335201863,1723975844950,-6022.38,0.00016438,2]
[335201864,1723975844959,-6022.38,0.00016438,2]
[335201865,1723975844969,-6022.38,0.00016438,2]
[335201866,1723975844979,-6022.38,0.00016438,2]
[335201867,1723975844989,-6022.38,0.00016438,2]
[335201868,1723975845000,-6022.38,0.00016438,2]
[335201869,1723975845013,-1000.0,0.00016465,2]
[335201870,1723975845023,-1000.0,0.00016489,2]
[335201871,1723975845032,-154.69833824,0.00016499,2]
[335201872,1723975845041,-1000.0,0.0001657,2]
[335201873,1723975845052,-587.0,0.00016573,2]
[335201874,1723975845062,-150.112233,0.000166,2]
[335201875,1723975845071,-5327.60651547,0.00016631,2]
[335201876,1723975845081,-500.0,0.00016712,2]
[335201877,1723975845091,-500.0,0.00016712,2]
[335201878,1723975845101,-500.0,0.00016712,2]
[335201879,1723975845110,-500.0,0.00016712,2]
[335201880,1723975845120,-500.0,0.00016712,2]
[335201881,1723975845129,-500.0,0.00016712,2]
[335201882,1723975845138,-500.0,0.00016712,2]
[335201883,1723975845148,-500.0,0.00016712,2]
[335201884,1723975845158,-500.0,0.00016712,2]
[335201885,1723975845167,-500.0,0.00016712,2]
[335201886,1723975845177,-500.0,0.00016712,2]
[335201887,1723975845186,-500.0,0.00016712,2]
[335201888,1723975845196,-500.0,0.00016712,2]
[335201889,1723975845205,-500.0,0.00016712,2]
[335201890,1723975845214,-849.17,0.00016712,2]
[335201891,1723975845225,-500.0,0.00016712,2]
[335201892,1723975845235,-500.0,0.00016712,2]
[335201893,1723975845245,-752.37,0.00016712,2]
[335201894,1723975845254,-500.0,0.00016712,2]
[335201895,1723975845263,-500.0,0.00016712,2]
[335201896,1723975845273,-500.0,0.00016712,2]
[335201897,1723975845282,-500.0,0.00016712,2]
[335201898,1723975845292,-500.0,0.00016712,2]
[335201899,1723975845301,-249.044177,0.00016712,2]
[335201900,1723975845310,-500.0,0.00016712,2]
[335201901,1723975845319,-500.0,0.00016712,2]
[335201902,1723975845329,-511.71388693,0.00016712,2]
[335201903,1723975845339,-500.0,0.00016712,2]
[335201904,1723975845348,-500.0,0.00016712,2]
[335201905,1723975845358,-693.39,0.00016712,2]
[335201906,1723975845367,-500.0,0.00016712,2]
[335201907,1723975845377,-500.0,0.00016712,2]
[335201908,1723975845386,-500.0,0.00016712,2]
[335201910,1723975845395,-500.0,0.00016712,2]
[335201911,1723975845404,-500.0,0.00016712,2]
[335201912,1723975845414,-500.0,0.00016712,2]
[335201913,1723975845423,-500.0,0.00016712,2]
[335201914,1723975845433,-500.0,0.00016712,2]
[335201915,1723975845442,-506.09,0.00016712,2]
[335201916,1723975845452,-500.0,0.00016712,2]
[335201917,1723975845462,-500.0,0.00016712,2]
[335201918,1723975845472,-500.0,0.00016712,2]
[335201919,1723975845489,-513.29854098,0.00016712,2]
[335201920,1723975845499,-538.98,0.00016712,2]
[335201921,1723975845508,-500.0,0.00016712,2]
[335201922,1723975845517,-500.0,0.00016712,2]
[335201923,1723975845527,-500.0,0.00016712,2]
[335201924,1723975845539,-953.05,0.00016712,2]
[335201925,1723975845550,-500.0,0.00016712,2]
[335201926,1723975845559,-500.0,0.00016712,2]
[335201927,1723975845570,-500.0,0.00016712,2]
[335201928,1723975845581,-500.0,0.00016712,2]
[335201930,1723975845590,-500.0,0.00016712,2]
[335201932,1723975845600,-639.44,0.00016712,2]
[335201934,1723975845609,-500.0,0.00016712,2]
[335201937,1723975845619,-655.9,0.00016712,2]
[335201938,1723975845628,-500.0,0.00016712,2]
[335201939,1723975845637,-612.4,0.00016712,2]
[335201940,1723975845647,-632.58,0.00016712,2]
[335201941,1723975845655,-502.4220924,0.00016712,2]
[335201942,1723975845665,-737.84,0.00016712,2]
[335201943,1723975845675,-500.0,0.00016712,2]
[335201944,1723975845684,-500.0,0.00016712,2]
[335201945,1723975845695,-500.0,0.00016712,2]
[335201946,1723975845704,-500.0,0.00016712,2]
[335201947,1723975845714,-500.0,0.00016712,2]
[335201949,1723975845725,-944.98,0.00016712,2]
[335201950,1723975845734,-500.0,0.00016712,2]
[335201951,1723975845743,-552.29,0.00016712,2]
[335201952,1723975845753,-500.0,0.00016712,2]
[335201953,1723975845762,-500.0,0.00016712,2]
[335201954,1723975845772,-500.0,0.00016712,2]
[335201955,1723975845781,-500.0,0.00016712,2]
[335201956,1723975845790,-500.0,0.00016712,2]
[335201957,1723975845800,-538.46934592,0.00016712,2]
[335201958,1723975845809,-500.0,0.00016712,2]
[335201959,1723975845819,-500.0,0.00016712,2]
[335201960,1723975845830,-500.0,0.00016712,2]
[335201961,1723975845840,-500.0,0.00016712,2]
[335201965,1723975845851,-792.81,0.00016712,2]
[335201967,1723975845953,-744.89,0.00016712,2]
[335201969,1723975845963,-500.0,0.00016712,2]
[335201971,1723975845975,-500.0,0.00016712,2]
[335201973,1723975845985,-500.0,0.00016712,2]
[335201974,1723975845997,-514.81389458,0.00016712,2]
[335201975,1723975846011,-650.78,0.00016712,2]
[335201976,1723975846021,-500.0,0.00016712,2]
[335201977,1723975846032,-500.0,0.00016712,2]
[335201978,1723975846042,-500.0,0.00016712,2]
[335201979,1723975846053,-500.0,0.00016712,2]
[335201980,1723975846063,-1387.31,0.00016712,2]
[335201981,1723975846073,-500.0,0.00016712,2]
[335201982,1723975846086,-500.0,0.00016712,2]
[335201983,1723975846097,-500.0,0.00016712,2]
[335201984,1723975846109,-500.0,0.00016712,2]
[335201985,1723975846119,-500.0,0.00016712,2]
[335201986,1723975846128,-500.0,0.00016712,2]
[335201987,1723975846138,-500.0,0.00016712,2]
[335201988,1723975846148,-748.12,0.00016712,2]
[335201989,1723975846157,-516.1702096,0.00016712,2]
[335201990,1723975846167,-500.0,0.00016712,2]
[335201991,1723975846177,-500.0,0.00016712,2]
[335201992,1723975846187,-522.37444784,0.00016712,2]
[335201993,1723975846199,-713.86,0.00016712,2]
[335201994,1723975846210,-383.34210581,0.00016712,2]
[335201995,1723975846222,-500.0,0.00016712,2]
[335201996,1723975846233,-500.0,0.00016712,2]
[335201997,1723975846243,-410.26667269,0.00016712,2]
[335201998,1723975846255,-500.0,0.00016712,2]
[335201999,1723975846266,-500.0,0.00016712,2]
[335202000,1723975846277,-500.0,0.00016712,2]
[335202001,1723975846288,-500.0,0.00016712,2]
[335202002,1723975846298,-415.65681988,0.00016712,2]
[335202003,1723975846309,-500.0,0.00016712,2]
[335202004,1723975846320,-155.97998199,0.00016712,2]
[335202005,1723975846331,-200.0,0.00016712,2]
[335202006,1723975846343,-228.20943716,0.00016712,2]
[335202007,1723975846354,-500.0,0.00016712,2]
[335202008,1723975846365,-500.0,0.00016712,2]
[335202009,1723975846375,-500.0,0.00016712,2]
[335202010,1723975846384,-500.0,0.00016712,2]
[335202011,1723975846393,-500.0,0.00016712,2]
[335202012,1723975846403,-500.0,0.00016712,2]
[335202013,1723975846413,-500.0,0.00016712,2]
[335202014,1723975846422,-151.0,0.00016712,2]
[335202015,1723975846432,-520.32,0.00016712,2]
[335202016,1723975846442,-532.8,0.00016712,2]
[335202017,1723975846452,-500.0,0.00016712,2]
[335202018,1723975846461,-500.0,0.00016712,2]
[335202019,1723975846470,-287.390957,0.00016712,2]
[335202020,1723975846481,-2005.0,0.00016712,10]
[335202021,1723975846491,-500.0,0.00016712,2]
[335202022,1723975846500,-569.87,0.00016712,2]
[335202023,1723975846510,-572.16363907,0.00016712,2]
[335202024,1723975846519,-715.19,0.00016712,2]
[335202025,1723975846528,-500.0,0.00016712,2]
[335202026,1723975846538,-500.0,0.00016712,2]
[335202027,1723975846547,-708.43,0.00016712,2]
[335202028,1723975846557,-511.2007316,0.00016712,2]
[335202029,1723975846567,-500.0,0.00016712,2]
[335202030,1723975846576,-1103.33,0.00016712,2]
[335202031,1723975846586,-622.22677085,0.00016712,2]
[335202032,1723975846596,-500.0,0.00016712,2]
[335202033,1723975846606,-500.0,0.00016712,2]
[335202034,1723975846615,-508.19,0.00016712,2]
[335202035,1723975846625,-414.96297049,0.00016712,2]
[335202036,1723975846635,-663.94,0.00016712,2]
[335202037,1723975846644,-500.0,0.00016712,2]
[335202038,1723975846654,-500.0,0.00016712,2]
[335202039,1723975846663,-579.33,0.00016712,2]
[335202040,1723975846674,-500.0,0.00016712,2]
[335202041,1723975846686,-910.15,0.00016712,2]
[335202042,1723975846696,-500.0,0.00016712,2]
[335202043,1723975846707,-500.0,0.00016712,2]
[335202044,1723975846718,-500.0,0.00016712,2]
[335202045,1723975846727,-500.0,0.00016712,2]
[335202046,1723975846739,-534.96,0.00016712,2]
[335202047,1723975846748,-500.0,0.00016712,2]
[335202048,1723975846759,-500.0,0.00016712,2]
[335202049,1723975846770,-651.59,0.00016712,2]
[335202050,1723975846780,-500.0,0.00016712,2]
[335202051,1723975846790,-500.0,0.00016712,2]
[335202052,1723975846801,-565.19,0.00016712,2]
[335202053,1723975846810,-606.11,0.00016712,2]
[335202054,1723975846820,-500.0,0.00016712,2]
[335202055,1723975846829,-555.52,0.00016712,2]
[335202056,1723975846839,-500.0,0.00016712,2]
[335202057,1723975846848,-500.0,0.00016712,2]
[335202058,1723975846857,-611.88,0.00016712,2]
[335202059,1723975846867,-500.0,0.00016712,2]
[335202060,1723975846877,-589.12,0.00016712,2]
[335202061,1723975846886,-749.94,0.00016712,2]
[335202062,1723975846895,-500.0,0.00016712,2]
[335202063,1723975846905,-500.0,0.00016712,2]
[335202064,1723975846917,-500.0,0.00016712,2]
[335202065,1723975846928,-500.0,0.00016712,2]
[335202066,1723975846938,-500.0,0.00016712,2]
[335202067,1723975846949,-641.13,0.00016712,2]
[335202068,1723975846960,-500.0,0.00016712,2]
[335202069,1723975846970,-500.0,0.00016712,2]
[335202070,1723975846981,-500.0,0.00016712,2]
[335202071,1723975846992,-500.0,0.00016712,2]
[335202072,1723975847001,-500.0,0.00016712,2]
[335202073,1723975847015,-500.0,0.00016712,2]
[335202074,1723975847025,-500.0,0.00016712,2]
[335202075,1723975847034,-1137.4,0.00016712,2]
[335202076,1723975847044,-635.5952939,0.00016712,2]
[335202077,1723975847056,-500.0,0.00016712,2]
[335202078,1723975847066,-500.0,0.00016712,2]
[335202079,1723975847077,-500.0,0.00016712,2]
[335202080,1723975847090,-500.0,0.00016712,2]
[335202081,1723975847101,-915.34,0.00016712,2]
[335202082,1723975847114,-500.0,0.00016712,2]
[335202083,1723975847123,-500.0,0.00016712,2]
[335202084,1723975847134,-500.0,0.00016712,2]
[335202085,1723975847144,-500.0,0.00016712,2]
[335202086,1723975847155,-500.0,0.00016712,2]
[335202087,1723975847167,-500.0,0.00016712,2]
[335202088,1723975847179,-500.0,0.00016712,2]
[335202089,1723975847188,-500.0,0.00016712,2]
[335202090,1723975847199,-739.06,0.00016712,2]
[335202091,1723975847209,-500.0,0.00016712,2]
[335202092,1723975847219,-500.0,0.00016712,2]
[335202093,1723975847231,-500.0,0.00016712,2]
[335202094,1723975847241,-500.0,0.00016712,2]
[335202095,1723975847250,-500.0,0.00016712,2]
[335202096,1723975847261,-500.0,0.00016712,2]
[335202097,1723975847270,-500.0,0.00016712,2]
[335202098,1723975847282,-541.93,0.00016712,2]
[335202099,1723975847293,-500.0,0.00016712,2]
[335202100,1723975847303,-500.0,0.00016712,2]
[335202101,1723975847312,-1000.0,0.00016712,2]
[335202102,1723975847322,-795.36,0.00016712,2]
[335202103,1723975847332,-500.0,0.00016712,2]
[335202104,1723975847342,-628.75,0.00016712,2]
[335202105,1723975847351,-500.0,0.00016712,2]
[335202106,1723975847361,-500.0,0.00016712,2]
[335202107,1723975847371,-1184.58,0.00016712,2]
[335202108,1723975847380,-500.0,0.00016712,2]
[335202109,1723975847390,-500.0,0.00016712,2]
[335202110,1723975847399,-500.0,0.00016712,2]
[335202111,1723975847408,-500.0,0.00016712,2]
[335202112,1723975847418,-1779.42,0.00016712,2]
[335202113,1723975847427,-500.0,0.00016712,2]
[335202114,1723975847436,-500.0,0.00016712,2]
[335202115,1723975847446,-690.01,0.00016712,2]
[335202116,1723975847455,-787.93,0.00016712,2]
[335202117,1723975847464,-553.0,0.00016712,2]
[335202118,1723975847473,-500.0,0.00016712,2]
[335202119,1723975847483,-604.5,0.00016712,2]
[335202120,1723975847494,-500.0,0.00016712,2]
[335202121,1723975847503,-500.0,0.00016712,2]
[335202122,1723975847512,-500.0,0.00016712,2]
[335202123,1723975847521,-500.0,0.00016712,2]
[335202124,1723975847531,-500.0,0.00016712,2]
[335202125,1723975847540,-1062.24,0.00016712,2]
[335202126,1723975847550,-500.0,0.00016712,2]
[335202127,1723975847558,-1234.84,0.00016712,2]
[335202128,1723975847568,-500.0,0.00016712,2]
[335202129,1723975847577,-500.0,0.00016712,2]
[335202130,1723975847587,-500.0,0.00016712,2]
[335202131,1723975847596,-1058.98,0.00016712,2]
[335202132,1723975847693,-500.0,0.00016712,2]
[335202133,1723975847703,-500.0,0.00016712,2]
[335202134,1723975847715,-1242.8,0.00016712,2]
[335202135,1723975847725,-547.1,0.00016712,2]
[335202136,1723975847734,-991.73,0.00016712,2]
[335202137,1723975847744,-500.0,0.00016712,2]
[335202138,1723975847754,-500.0,0.00016712,2]
[335202139,1723975847763,-654.27,0.00016712,2]
[335202140,1723975847771,-500.0,0.00016712,2]
[335202141,1723975847781,-596.35,0.00016712,2]
[335202142,1723975847790,-500.0,0.00016712,2]
[335202143,1723975847799,-501.44,0.00016712,2]
[335202144,1723975847808,-1968.71,0.00016712,2]
[335202145,1723975847818,-530.81,0.00016712,2]
[335202146,1723975847828,-4276.47,0.00016712,2]
[335202147,1723975847838,-700.84,0.00016712,2]
[335202148,1723975847848,-500.0,0.00016712,2]
[335202149,1723975847857,-842.33,0.00016712,2]
[335202150,1723975847867,-1213.68,0.00016712,2]
[335202151,1723975847877,-500.0,0.00016712,2]
[335202152,1723975847887,-500.0,0.00016712,2]
[335202153,1723975847897,-500.0,0.00016712,2]
[335202154,1723975847907,-500.0,0.00016712,2]
[335202155,1723975847916,-500.0,0.00016712,2]
[335202156,1723975847927,-2834.67,0.00016712,2]
[335202157,1723975847940,-500.0,0.00016712,2]
[335202158,1723975847950,-500.0,0.00016712,2]
[335202159,1723975847961,-1049.89,0.00016712,2]
[335202160,1723975847973,-500.0,0.00016712,2]
[335202161,1723975847984,-639.92371731,0.00016712,2]
[335202162,1723975847994,-841.62,0.00016712,2]
[335202163,1723975848003,-969.98,0.00016712,2]
[335202164,1723975848018,-500.0,0.00016712,2]
[335202165,1723975848027,-812.46,0.00016712,2]
[335202166,1723975848037,-500.0,0.00016712,2]
[335202167,1723975848048,-500.0,0.00016712,2]
[335202168,1723975848061,-444.93234479,0.00016712,2]
[335202169,1723975848073,-1115.29,0.00016712,2]
[335202170,1723975848084,-500.0,0.00016712,2]
[335202171,1723975848095,-500.0,0.00016712,2]
[335202172,1723975848106,-500.0,0.00016712,2]
[335202173,1723975848117,-537.54,0.00016712,2]
[335202174,1723975848126,-500.0,0.00016712,2]
[335202175,1723975848136,-932.19,0.00016712,2]
[335202176,1723975848145,-1792.07,0.00016712,2]
[335202177,1723975848155,-500.0,0.00016712,2]
[335202178,1723975848164,-577.19,0.00016712,2]
[335202179,1723975848174,-1047.52,0.00016712,2]
[335202180,1723975848183,-500.0,0.00016712,2]
[335202181,1723975848193,-500.0,0.00016712,2]
[335202182,1723975848202,-500.0,0.00016712,2]
[335202183,1723975848212,-935.42,0.00016712,2]
[335202184,1723975848221,-500.0,0.00016712,2]
[335202185,1723975848231,-550.3,0.00016712,2]
[335202186,1723975848241,-504.56767197,0.00016712,2]
[335202187,1723975848250,-503.37,0.00016712,2]
[335202188,1723975848260,-646.91,0.00016712,2]
[335202189,1723975848269,-580.66,0.00016712,2]
[335202190,1723975848278,-502.95311286,0.00016712,2]
[335202191,1723975848288,-958.9,0.00016712,2]
[335202192,1723975848297,-500.0,0.00016712,2]
[335202193,1723975848307,-500.0,0.00016712,2]
[335202194,1723975848316,-500.0,0.00016712,2]
[335202195,1723975848326,-500.0,0.00016712,2]
[335202196,1723975848335,-2045.51,0.00016712,2]
[335202197,1723975848344,-500.0,0.00016712,2]
[335202198,1723975848354,-500.0,0.00016712,2]
[335202199,1723975848363,-500.0,0.00016712,2]
[335202200,1723975848373,-517.67,0.00016712,2]
[335202201,1723975848383,-500.0,0.00016712,2]
[335202202,1723975848394,-500.0,0.00016712,2]
[335202203,1723975848404,-500.0,0.00016712,2]
[335202204,1723975848415,-500.0,0.00016712,2]
[335202205,1723975848427,-500.0,0.00016712,2]
[335202206,1723975848439,-671.98,0.00016712,2]
[335202207,1723975848450,-641.97,0.00016712,2]
[335202208,1723975848473,-2599.49,0.00016712,2]
[335202209,1723975848491,-500.0,0.00016712,2]
[335202210,1723975848512,-500.0,0.00016712,2]
[335202211,1723975848532,-502.57367614,0.00016712,2]
[335202212,1723975848550,-6716.99,0.00016712,2]
[335202213,1723975848568,-500.0,0.00016712,2]
[335202214,1723975848584,-820.82,0.00016712,2]
[335202215,1723975848603,-500.0,0.00016712,2]
[335202216,1723975848619,-504.1198036,0.00016712,2]
[335202217,1723975848634,-502.13860294,0.00016712,2]
[335202218,1723975848652,-500.0,0.00016712,2]
[335202219,1723975848672,-820.5,0.00016712,2]
[335202220,1723975848691,-721.61,0.00016712,2]
[335202221,1723975848703,-500.0,0.00016712,2]
[335202222,1723975848719,-500.0,0.00016712,2]
[335202223,1723975848736,-729.38,0.00016712,2]
[335202224,1723975848751,-636.58,0.00016712,2]
[335202225,1723975848768,-674.4,0.00016712,2]
[335202226,1723975848782,-500.0,0.00016712,2]
[335202227,1723975848796,-170.170398,0.00016712,2]
[335202228,1723975848812,-500.0,0.00016712,2]
[335202229,1723975848827,-500.0,0.00016712,2]
[335202230,1723975848841,-170.170398,0.00016712,2]
[335202231,1723975848857,-1149.89,0.00016712,2]
[335202232,1723975848871,-500.0,0.00016712,2]
[335202233,1723975848885,-500.0,0.00016712,2]
[335202234,1723975848900,-500.0,0.00016712,2]
[335202235,1723975848913,-500.0,0.00016712,2]
[335202236,1723975848927,-891.32,0.00016712,2]
[335202237,1723975848940,-812.98,0.00016712,2]
[335202238,1723975848954,-549.29323674,0.00016712,2]
[335202239,1723975848970,-890.82,0.00016712,2]
[335202240,1723975848984,-1069.24,0.00016712,2]
[335202241,1723975849000,-500.0,0.00016712,2]
[335202242,1723975849019,-500.0,0.00016712,2]
[335202243,1723975849034,-701.49,0.00016712,2]
[335202244,1723975849049,-752.09,0.00016712,2]
[335202245,1723975849064,-807.24,0.00016712,2]
[335202246,1723975849079,-500.0,0.00016712,2]
[335202247,1723975849095,-500.0,0.00016712,2]
[335202248,1723975849111,-500.0,0.00016712,2]
[335202249,1723975849127,-500.0,0.00016712,2]
[335202250,1723975849141,-716.82,0.00016712,2]
[335202251,1723975849156,-500.0,0.00016712,2]
[335202252,1723975849171,-551.57,0.00016712,2]
[335202253,1723975849185,-708.62,0.00016712,2]
[335202254,1723975849200,-500.0,0.00016778,2]
[335202255,1723975849213,-1110.8112074,0.00016934,2]